[Event "*** Titled Tuesday Blitz"]
[Site "Chess.com"]
[Date "2021.02.09"]
[Round "2"]
[White "1800_strength"]
[Black "elohunter1999"]
[Result "1/2-1/2"]
[WhiteElo "2419"]
[BlackElo "2662"]
[TimeControl "180+1"]
[EndTime "10:18:36 PST"]
[Termination "Game drawn by agreement"]

1. Nc3 {[%clk 0:03:00.9]} 1... c5 {[%clk 0:02:55.8]} 2. e4 {[%clk 0:03:00.9]}
2... Nc6 {[%clk 0:02:55.5]} 3. f4 {[%clk 0:03:01.6]} 3... g6 {[%clk 0:02:55.1]}
4. Nf3 {[%clk 0:03:02.2]} 4... Bg7 {[%clk 0:02:55.1]} 5. Bc4 {[%clk 0:03:02.9]}
5... e6 {[%clk 0:02:54.5]} 6. f5 {[%clk 0:03:03.3]} 6... Nge7 {[%clk 0:02:34.9]}
7. fxe6 {[%clk 0:03:03.5]} 7... fxe6 {[%clk 0:02:31.2]} 8. d3 {[%clk 0:02:59.5]}
8... d5 {[%clk 0:02:26.8]} 9. Bb3 {[%clk 0:02:56.8]} 9... b5 {[%clk 0:02:20.3]}
10. O-O {[%clk 0:02:43.4]} 10... c4 {[%clk 0:02:13.9]} 11. exd5 {[%clk
0:02:40.6]} 11... exd5 {[%clk 0:02:10.7]} 12. dxc4 {[%clk 0:02:40.8]} 12... dxc4
{[%clk 0:02:08.9]} 13. Qxd8+ {[%clk 0:02:40.3]} 13... Nxd8 {[%clk 0:01:44.6]}
14. Nxb5 {[%clk 0:02:34.5]} 14... cxb3 {[%clk 0:01:44.5]} 15. Nc7+ {[%clk
0:02:31.9]} 15... Kd7 {[%clk 0:01:44.4]} 16. Nxa8 {[%clk 0:02:32.3]} 16... bxc2
{[%clk 0:01:43.6]} 17. Bf4 {[%clk 0:02:22.7]} 17... Rf8 {[%clk 0:01:32.1]} 18.
Bg3 {[%clk 0:02:14.3]} 18... Nf5 {[%clk 0:01:25.5]} 19. Ne5+ {[%clk 0:02:08.1]}
19... Bxe5 {[%clk 0:01:21.4]} 20. Bxe5 {[%clk 0:02:09]} 20... Ne6 {[%clk
0:01:16.3]} 21. g4 {[%clk 0:01:59.3]} 21... Ne3 {[%clk 0:01:02.7]} 22. Rxf8
{[%clk 0:01:58]} 22... Nxf8 {[%clk 0:01:03.6]} 23. Nc7 {[%clk 0:01:58.6]} 23...
Nxg4 {[%clk 0:00:30.9]} 24. Bg3 {[%clk 0:01:53.7]} 24... Kc6 {[%clk 0:00:31]}
25. Rc1 {[%clk 0:01:44]} 25... Bf5 {[%clk 0:00:30.9]} 26. a4 {[%clk 0:01:42.8]}
26... Ne3 {[%clk 0:00:27]} 27. Nb5 {[%clk 0:01:39.4]} 27... Ne6 {[%clk
0:00:24.4]} 28. Bf2 {[%clk 0:01:31.4]} 28... Nc4 {[%clk 0:00:18.4]} 29. Nxa7+
{[%clk 0:01:28.6]} 29... Kd5 {[%clk 0:00:16.6]} 30. Nb5 {[%clk 0:01:28.2]} 30...
Nxb2 {[%clk 0:00:15.7]} 31. Na3 {[%clk 0:01:28]} 31... Nf4 {[%clk 0:00:07.5]}
32. Rxc2 {[%clk 0:00:56]} 32... Bxc2 {[%clk 0:00:07.1]} 33. Nxc2 {[%clk
0:00:56.9]} 33... Nxa4 {[%clk 0:00:07.2]} 34. Be3 {[%clk 0:00:56.1]} 34... Ne6
{[%clk 0:00:07.1]} 35. Kf2 {[%clk 0:00:56]} 35... Ke4 {[%clk 0:00:07.3]} 36. Bh6
{[%clk 0:00:55.8]} 36... Nc3 {[%clk 0:00:07.6]} 37. Bd2 {[%clk 0:00:54.8]} 37...
Nd5 {[%clk 0:00:07.8]} 38. Ne1 {[%clk 0:00:54.3]} 38... h5 {[%clk 0:00:08.4]}
39. Nf3 {[%clk 0:00:53.7]} 39... Kf5 {[%clk 0:00:08.4]} 40. Nh4+ {[%clk
0:00:53.5]} 40... Kf6 {[%clk 0:00:08.7]} 41. Nf3 {[%clk 0:00:53.8]} 41... g5
{[%clk 0:00:08.8]} 42. Bc1 {[%clk 0:00:52.7]} 42... g4 {[%clk 0:00:09.1]} 43.
Nh4 {[%clk 0:00:48.9]} 43... Nc5 {[%clk 0:00:09.5]} 44. Ng2 {[%clk 0:00:39.1]}
44... Nd3+ {[%clk 0:00:09.7]} 45. Kg3 {[%clk 0:00:38.6]} 45... Nxc1 {[%clk
0:00:10]} 46. Kh4 {[%clk 0:00:39.4]} 46... Kg6 {[%clk 0:00:10.1]} 47. h3 {[%clk
0:00:39.2]} 47... gxh3 {[%clk 0:00:08.5]} 48. Kxh3 {[%clk 0:00:40.1]} 48... Nd3
{[%clk 0:00:08.1]} 49. Kh4 {[%clk 0:00:39.3]} 49... Ne5 {[%clk 0:00:07.4]} 50.
Kg3 {[%clk 0:00:38]} 50... Kg5 {[%clk 0:00:07]} 51. Kh3 {[%clk 0:00:36.6]} 51...
Nf4+ {[%clk 0:00:06.5]} 52. Nxf4 {[%clk 0:00:37]} 52... h4 {[%clk 0:00:03.4]}
53. Ne6+ {[%clk 0:00:35.2]} 53... Kh5 {[%clk 0:00:03.5]} 54. Ng7+ {[%clk
0:00:35.1]} 54... Kg5 {[%clk 0:00:03.9]} 55. Ne6+ {[%clk 0:00:35.2]} 1/2-1/2

[Event "*** Titled Tuesday Blitz"]
[Site "Chess.com"]
[Date "2021.02.09"]
[Round "2"]
[White "rogapa"]
[Black "lelajavakhishvili"]
[Result "1/2-1/2"]
[WhiteElo "2741"]
[BlackElo "2494"]
[TimeControl "180+1"]
[EndTime "10:18:37 PST"]
[Termination "Game drawn by repetition"]

1. e4 {[%clk 0:03:00.9]} 1... d6 {[%clk 0:02:59.5]} 2. d4 {[%clk 0:02:59.8]}
2... Nf6 {[%clk 0:02:59.7]} 3. Nc3 {[%clk 0:02:58.9]} 3... g6 {[%clk 0:02:59.9]}
4. f4 {[%clk 0:02:58.5]} 4... Bg7 {[%clk 0:02:58.7]} 5. Nf3 {[%clk 0:02:58.4]}
5... Nc6 {[%clk 0:02:58.2]} 6. e5 {[%clk 0:02:55.2]} 6... dxe5 {[%clk
0:02:52.6]} 7. fxe5 {[%clk 0:02:49.9]} 7... Nd5 {[%clk 0:02:52.5]} 8. Bc4 {[%clk
0:02:48.3]} 8... Nb6 {[%clk 0:02:38.2]} 9. Bb3 {[%clk 0:02:42.6]} 9... O-O
{[%clk 0:02:34.8]} 10. Ne4 {[%clk 0:02:28]} 10... Na5 {[%clk 0:02:18.4]} 11. c3
{[%clk 0:02:20.8]} 11... Nxb3 {[%clk 0:02:17.3]} 12. axb3 {[%clk 0:02:21.7]}
12... a5 {[%clk 0:02:14.3]} 13. O-O {[%clk 0:02:19.9]} 13... f5 {[%clk
0:01:58.9]} 14. Nc5 {[%clk 0:02:14.3]} 14... h6 {[%clk 0:01:49.5]} 15. c4 {[%clk
0:02:09.1]} 15... e6 {[%clk 0:01:46.2]} 16. Bd2 {[%clk 0:01:53.5]} 16... a4
{[%clk 0:01:45.4]} 17. Nxa4 {[%clk 0:01:38.8]} 17... Nxa4 {[%clk 0:01:27.3]} 18.
Rxa4 {[%clk 0:01:30.6]} 18... Rxa4 {[%clk 0:01:23.7]} 19. bxa4 {[%clk
0:01:31.5]} 19... g5 {[%clk 0:01:24]} 20. Bb4 {[%clk 0:01:23.3]} 20... Rf7
{[%clk 0:01:20.8]} 21. d5 {[%clk 0:01:16]} 21... g4 {[%clk 0:01:16.4]} 22. Nd4
{[%clk 0:01:15.5]} 22... exd5 {[%clk 0:01:13.7]} 23. e6 {[%clk 0:01:14.7]} 23...
Bxd4+ {[%clk 0:00:47.8]} 24. Qxd4 {[%clk 0:01:15.6]} 24... Bxe6 {[%clk 0:00:48]}
25. Bc3 {[%clk 0:01:14.4]} 25... Kh7 {[%clk 0:00:47.4]} 26. Re1 {[%clk
0:01:10.4]} 26... Bc8 {[%clk 0:00:21.3]} 27. cxd5 {[%clk 0:00:55.9]} 27... Kg6
{[%clk 0:00:21.2]} 28. a5 {[%clk 0:00:53.6]} 28... Bd7 {[%clk 0:00:20.2]} 29. b4
{[%clk 0:00:50]} 29... Qg5 {[%clk 0:00:17.8]} 30. Qe5 {[%clk 0:00:43.7]} 30...
Kh5 {[%clk 0:00:16.7]} 31. Qxc7 {[%clk 0:00:42.7]} 31... f4 {[%clk 0:00:13.2]}
32. Re5 {[%clk 0:00:41.1]} 32... Rf5 {[%clk 0:00:13.5]} 33. Qd6 {[%clk
0:00:14.1]} 33... f3 {[%clk 0:00:11.5]} 34. Rxf5 {[%clk 0:00:11]} 34... Bxf5
{[%clk 0:00:11]} 35. gxf3 {[%clk 0:00:06.8]} 35... gxf3+ {[%clk 0:00:10.5]} 36.
Qg3 {[%clk 0:00:07.3]} 36... Qe3+ {[%clk 0:00:10.7]} 37. Qf2 {[%clk 0:00:03.6]}
37... Qc1+ {[%clk 0:00:10.1]} 38. Be1 {[%clk 0:00:02.2]} 38... Qg5+ {[%clk
0:00:09.9]} 39. Qg3 {[%clk 0:00:02.1]} 39... Qe3+ {[%clk 0:00:09.6]} 40. Qf2
{[%clk 0:00:01.6]} 40... Qg5+ {[%clk 0:00:09.7]} 41. Qg3 {[%clk 0:00:02.1]}
41... Qe3+ {[%clk 0:00:09.9]} 42. Qf2 {[%clk 0:00:02.6]} 42... Qg5+ {[%clk
0:00:10.1]} 1/2-1/2

[Event "*** Titled Tuesday Blitz"]
[Site "Chess.com"]
[Date "2021.02.09"]
[Round "2"]
[White "Evgeny81"]
[Black "Brave_spirit12"]
[Result "1-0"]
[WhiteElo "2739"]
[BlackElo "2480"]
[TimeControl "180+1"]
[EndTime "10:18:37 PST"]
[Termination "Evgeny81 won by resignation"]

1. e4 {[%clk 0:03:00.9]} 1... e6 {[%clk 0:03:00.2]} 2. d4 {[%clk 0:02:59.9]}
2... d5 {[%clk 0:03:00.6]} 3. Nc3 {[%clk 0:03:00]} 3... Nf6 {[%clk 0:03:00.8]}
4. Bg5 {[%clk 0:02:56.4]} 4... Be7 {[%clk 0:02:56.7]} 5. e5 {[%clk 0:02:54.9]}
5... Nfd7 {[%clk 0:02:56.2]} 6. h4 {[%clk 0:02:54.8]} 6... h6 {[%clk 0:02:55]}
7. Bxe7 {[%clk 0:02:54.1]} 7... Qxe7 {[%clk 0:02:55.2]} 8. f4 {[%clk 0:02:53.5]}
8... a6 {[%clk 0:02:54.2]} 9. Nf3 {[%clk 0:02:52.2]} 9... c5 {[%clk 0:02:54.5]}
10. h5 {[%clk 0:02:51.8]} 10... Nc6 {[%clk 0:02:53.4]} 11. a3 {[%clk 0:02:47]}
11... b5 {[%clk 0:02:51]} 12. Ne2 {[%clk 0:02:39.3]} 12... Bb7 {[%clk
0:02:47.3]} 13. c3 {[%clk 0:02:37.4]} 13... c4 {[%clk 0:02:45.4]} 14. f5 {[%clk
0:02:32.6]} 14... Na5 {[%clk 0:02:42.5]} 15. Nf4 {[%clk 0:02:22.5]} 15... O-O-O
{[%clk 0:02:38.4]} 16. fxe6 {[%clk 0:02:17.2]} 16... Nb6 {[%clk 0:02:31]} 17.
exf7 {[%clk 0:02:11.5]} 17... Qxf7 {[%clk 0:02:31.9]} 18. g3 {[%clk 0:02:09.3]}
18... Na4 {[%clk 0:02:25.6]} 19. Qc2 {[%clk 0:02:00.6]} 19... Kb8 {[%clk
0:02:22.2]} 20. Rd1 {[%clk 0:01:52.4]} 20... Bc8 {[%clk 0:02:20.3]} 21. Bh3
{[%clk 0:01:45.5]} 21... Bxh3 {[%clk 0:02:03.9]} 22. Rxh3 {[%clk 0:01:46.4]}
22... Rhf8 {[%clk 0:01:45.5]} 23. Rd2 {[%clk 0:01:37.2]} 23... Nb3 {[%clk
0:01:42.3]} 24. Rf2 {[%clk 0:01:35]} 24... Qd7 {[%clk 0:01:37.7]} 25. Rh4 {[%clk
0:01:30.3]} 25... a5 {[%clk 0:01:34.4]} 26. Kf1 {[%clk 0:01:27.8]} 26... b4
{[%clk 0:01:29.6]} 27. axb4 {[%clk 0:01:27.4]} 27... axb4 {[%clk 0:01:29.7]} 28.
Kg2 {[%clk 0:01:27]} 28... bxc3 {[%clk 0:01:06.7]} 29. bxc3 {[%clk 0:01:26.6]}
29... Qf5 {[%clk 0:01:07.4]} 30. Qxf5 {[%clk 0:01:16.1]} 30... Rxf5 {[%clk
0:01:08.3]} 31. Rc2 {[%clk 0:01:06.7]} 31... Kb7 {[%clk 0:00:56.4]} 32. Rg4
{[%clk 0:01:06.7]} 32... Rf7 {[%clk 0:00:50.2]} 33. Rg6 {[%clk 0:01:03.6]} 33...
Re7 {[%clk 0:00:35.1]} 34. Nh4 {[%clk 0:00:57.3]} 34... Rf7 {[%clk 0:00:31.1]}
35. e6 {[%clk 0:00:56.3]} 35... Rc7 {[%clk 0:00:31]} 36. Nf5 {[%clk 0:00:51.3]}
36... Nb6 {[%clk 0:00:15.7]} 37. e7 {[%clk 0:00:42.2]} 37... Re8 {[%clk
0:00:14.4]} 38. Rxb6+ {[%clk 0:00:39.7]} 38... Kxb6 {[%clk 0:00:12.9]} 39. Nxd5+
{[%clk 0:00:40.6]} 39... Kc6 {[%clk 0:00:12]} 40. Nxc7 {[%clk 0:00:39.8]} 40...
Kxc7 {[%clk 0:00:12.9]} 41. d5 {[%clk 0:00:36.1]} 41... Kd7 {[%clk 0:00:13]} 42.
d6 {[%clk 0:00:34.6]} 42... Rg8 {[%clk 0:00:11.1]} 43. Ra2 {[%clk 0:00:32.6]}
43... Ke6 {[%clk 0:00:09]} 44. Ra7 {[%clk 0:00:26.7]} 44... Nc5 {[%clk
0:00:06.7]} 45. Nxg7+ {[%clk 0:00:22.4]} 1-0

[Event "*** Titled Tuesday Blitz"]
[Site "Chess.com"]
[Date "2021.02.09"]
[Round "2"]
[White "googlegoom"]
[Black "Kale36"]
[Result "1-0"]
[WhiteElo "2554"]
[BlackElo "2258"]
[TimeControl "180+1"]
[EndTime "10:18:39 PST"]
[Termination "googlegoom won by checkmate"]

1. Nf3 {[%clk 0:03:00.9]} 1... Nc6 {[%clk 0:02:54.6]} 2. d4 {[%clk 0:03:00]}
2... d6 {[%clk 0:02:54.4]} 3. b3 {[%clk 0:02:59.8]} 3... Bg4 {[%clk 0:02:54.3]}
4. Bb2 {[%clk 0:02:59.1]} 4... f6 {[%clk 0:02:51.7]} 5. d5 {[%clk 0:02:57.5]}
5... Ne5 {[%clk 0:02:51.3]} 6. Nd4 {[%clk 0:02:47.6]} 6... c5 {[%clk 0:02:50.9]}
7. dxc6 {[%clk 0:02:22.2]} 7... Nxc6 {[%clk 0:02:49.9]} 8. h3 {[%clk 0:02:18.2]}
8... Bd7 {[%clk 0:02:46.7]} 9. e3 {[%clk 0:02:15]} 9... e5 {[%clk 0:02:44.1]}
10. Nf3 {[%clk 0:02:15.1]} 10... Nh6 {[%clk 0:02:43]} 11. Be2 {[%clk 0:02:14]}
11... Nf7 {[%clk 0:02:43]} 12. O-O {[%clk 0:02:13.6]} 12... Be7 {[%clk
0:02:43.6]} 13. c4 {[%clk 0:02:14.1]} 13... O-O {[%clk 0:02:43.7]} 14. Nc3
{[%clk 0:02:14.7]} 14... Qc8 {[%clk 0:02:40]} 15. Nd5 {[%clk 0:02:13.9]} 15...
Bd8 {[%clk 0:02:30]} 16. Rc1 {[%clk 0:02:13.2]} 16... Ne7 {[%clk 0:02:30]} 17.
e4 {[%clk 0:02:06.7]} 17... Nxd5 {[%clk 0:02:29]} 18. cxd5 {[%clk 0:02:07.1]}
18... Qb8 {[%clk 0:02:28.9]} 19. Qd2 {[%clk 0:02:02]} 19... Bb6 {[%clk
0:02:28.9]} 20. Ba3 {[%clk 0:02:00.7]} 20... Qd8 {[%clk 0:02:22.8]} 21. Rc2
{[%clk 0:01:42.7]} 21... Rc8 {[%clk 0:02:22.7]} 22. Rfc1 {[%clk 0:01:40.8]}
22... Rxc2 {[%clk 0:02:22.2]} 23. Rxc2 {[%clk 0:01:41.2]} 23... Qb8 {[%clk
0:02:23.1]} 24. Ne1 {[%clk 0:01:35.3]} 24... Rc8 {[%clk 0:02:22.9]} 25. Bg4
{[%clk 0:01:34]} 25... Rxc2 {[%clk 0:02:21]} 26. Qxc2 {[%clk 0:01:25.7]} 26...
Bxg4 {[%clk 0:02:20.6]} 27. hxg4 {[%clk 0:01:25.1]} 27... Qc7 {[%clk 0:02:21.3]}
28. Kf1 {[%clk 0:01:16.7]} 28... Ng5 {[%clk 0:02:19.5]} 29. Qxc7 {[%clk
0:01:14.3]} 29... Bxc7 {[%clk 0:02:19.2]} 30. f3 {[%clk 0:01:14.8]} 30... g6
{[%clk 0:02:15.2]} 31. Nc2 {[%clk 0:01:09.2]} 31... h5 {[%clk 0:02:10.6]} 32.
gxh5 {[%clk 0:01:04.7]} 32... gxh5 {[%clk 0:02:11.5]} 33. Ne3 {[%clk 0:01:04.9]}
33... h4 {[%clk 0:02:06.3]} 34. Nf5 {[%clk 0:01:03.5]} 34... h3 {[%clk
0:02:01.1]} 35. gxh3 {[%clk 0:01:00.2]} 35... Nxf3 {[%clk 0:02:01.3]} 36. Bxd6
{[%clk 0:00:43.6]} 36... Bxd6 {[%clk 0:01:47.7]} 37. Nxd6 {[%clk 0:00:43.2]}
37... Ng5 {[%clk 0:01:48.6]} 38. h4 {[%clk 0:00:34]} 38... Nf3 {[%clk
0:01:40.5]} 39. Kf2 {[%clk 0:00:17.4]} 39... Nxh4 {[%clk 0:01:38.5]} 40. Nxb7
{[%clk 0:00:17.9]} 40... f5 {[%clk 0:01:35]} 41. exf5 {[%clk 0:00:16.3]} 41...
Nxf5 {[%clk 0:01:35.9]} 42. Kf3 {[%clk 0:00:16.5]} 42... Kf7 {[%clk 0:01:30.6]}
43. b4 {[%clk 0:00:12.3]} 43... Kf6 {[%clk 0:01:24.2]} 44. Ke4 {[%clk
0:00:11.2]} 44... Ng3+ {[%clk 0:01:23.7]} 45. Kd3 {[%clk 0:00:11.2]} 45... e4+
{[%clk 0:01:21.9]} 46. Kd4 {[%clk 0:00:09.8]} 46... Kf5 {[%clk 0:01:21.7]} 47.
d6 {[%clk 0:00:09.6]} 47... Kf4 {[%clk 0:01:22.2]} 48. d7 {[%clk 0:00:09.9]}
48... Nf5+ {[%clk 0:01:22.5]} 49. Kc3 {[%clk 0:00:08.7]} 49... e3 {[%clk
0:01:05.2]} 50. d8=Q {[%clk 0:00:08.8]} 50... e2 {[%clk 0:01:05.4]} 51. Qd2+
{[%clk 0:00:07.5]} 51... Kf3 {[%clk 0:01:05.2]} 52. Nc5 {[%clk 0:00:06.6]} 52...
Ng3 {[%clk 0:01:05]} 53. Nd3 {[%clk 0:00:06.1]} 53... Ne4+ {[%clk 0:01:04.8]}
54. Kc2 {[%clk 0:00:05.8]} 54... Nxd2 {[%clk 0:01:05.7]} 55. Kxd2 {[%clk
0:00:06.2]} 55... Ke4 {[%clk 0:01:04.1]} 56. Kxe2 {[%clk 0:00:06.7]} 56... Kd4
{[%clk 0:01:04.7]} 57. Kd2 {[%clk 0:00:06.7]} 57... Kc4 {[%clk 0:01:05.1]} 58.
Kc2 {[%clk 0:00:07.3]} 58... a6 {[%clk 0:01:04.9]} 59. a3 {[%clk 0:00:07.4]}
59... a5 {[%clk 0:01:05]} 60. bxa5 {[%clk 0:00:07.4]} 60... Kb5 {[%clk
0:01:05.6]} 61. Kb3 {[%clk 0:00:07.9]} 61... Kxa5 {[%clk 0:01:06.5]} 62. a4
{[%clk 0:00:08.6]} 62... Kb6 {[%clk 0:01:06.5]} 63. Kb4 {[%clk 0:00:09.5]} 63...
Ka6 {[%clk 0:01:06.7]} 64. a5 {[%clk 0:00:10.4]} 64... Kb7 {[%clk 0:01:06.7]}
65. Kb5 {[%clk 0:00:11.3]} 65... Ka7 {[%clk 0:01:07.6]} 66. a6 {[%clk
0:00:12.2]} 66... Kb8 {[%clk 0:01:07.5]} 67. Kb6 {[%clk 0:00:12.9]} 67... Ka8
{[%clk 0:01:08.4]} 68. Nb4 {[%clk 0:00:13.2]} 68... Kb8 {[%clk 0:01:09.3]} 69.
Nd5 {[%clk 0:00:13.6]} 69... Ka8 {[%clk 0:01:10.2]} 70. Nc7+ {[%clk 0:00:14]}
70... Kb8 {[%clk 0:01:11.1]} 71. a7+ {[%clk 0:00:14.6]} 71... Kc8 {[%clk
0:01:11.8]} 72. a8=Q+ {[%clk 0:00:15.2]} 72... Kd7 {[%clk 0:01:12.7]} 73. Qe8+
{[%clk 0:00:15.1]} 73... Kd6 {[%clk 0:01:12.6]} 74. Qe6# {[%clk 0:00:15.8]} 1-0

[Event "*** Titled Tuesday Blitz"]
[Site "Chess.com"]
[Date "2021.02.09"]
[Round "2"]
[White "awesomevishesh"]
[Black "Witik"]
[Result "0-1"]
[WhiteElo "2478"]
[BlackElo "2716"]
[TimeControl "180+1"]
[EndTime "10:18:41 PST"]
[Termination "Witik won on time"]

1. d4 {[%clk 0:03:00.9]} 1... d5 {[%clk 0:02:36]} 2. c4 {[%clk 0:03:00.4]} 2...
e6 {[%clk 0:02:34.5]} 3. Nf3 {[%clk 0:03:00]} 3... c6 {[%clk 0:02:34.4]} 4. g3
{[%clk 0:02:58.1]} 4... Bd6 {[%clk 0:02:33.9]} 5. Bg2 {[%clk 0:02:57.6]} 5... f5
{[%clk 0:02:34.1]} 6. O-O {[%clk 0:02:57.3]} 6... Nf6 {[%clk 0:02:34.4]} 7. Qc2
{[%clk 0:02:55.2]} 7... O-O {[%clk 0:02:33.9]} 8. Nc3 {[%clk 0:02:54.4]} 8...
Qe7 {[%clk 0:02:31.4]} 9. Rb1 {[%clk 0:02:53]} 9... Nbd7 {[%clk 0:02:28.9]} 10.
a3 {[%clk 0:02:18.9]} 10... Ne4 {[%clk 0:02:28]} 11. b4 {[%clk 0:02:12.1]} 11...
a5 {[%clk 0:02:01.9]} 12. c5 {[%clk 0:01:29.2]} 12... Bc7 {[%clk 0:01:51.1]} 13.
b5 {[%clk 0:00:57.6]} 13... e5 {[%clk 0:01:48.3]} 14. e3 {[%clk 0:00:48.6]}
14... Nxc3 {[%clk 0:01:32.1]} 15. Qxc3 {[%clk 0:00:47.9]} 15... e4 {[%clk
0:01:32.5]} 16. Nd2 {[%clk 0:00:44.5]} 16... a4 {[%clk 0:01:24.9]} 17. Qc2
{[%clk 0:00:32.4]} 17... Nf6 {[%clk 0:01:20.7]} 18. Re1 {[%clk 0:00:22.3]} 18...
h5 {[%clk 0:01:19.1]} 19. b6 {[%clk 0:00:14.4]} 19... Bb8 {[%clk 0:01:18.4]} 20.
f4 {[%clk 0:00:08.9]} 20... exf3 {[%clk 0:01:16.4]} 21. Nxf3 {[%clk 0:00:08.6]}
21... Ne4 {[%clk 0:01:14.3]} 22. Bd2 {[%clk 0:00:05.3]} 22... g5 {[%clk
0:01:05.4]} 23. Re2 {[%clk 0:00:05]} 23... h4 {[%clk 0:01:05.5]} 24. gxh4 {[%clk
0:00:05.2]} 24... g4 {[%clk 0:01:05.3]} 25. Ne5 {[%clk 0:00:02.9]} 25... Qxh4
{[%clk 0:01:02.1]} 26. Rf1 {[%clk 0:00:01.3]} 26... Be6 {[%clk 0:01:01.3]} 27.
Rf4 {[%clk 0:00:01.6]} 27... Qh6 {[%clk 0:00:56.7]} 28. Be1 {[%clk 0:00:02]}
28... Bxe5 {[%clk 0:00:56]} 29. dxe5 {[%clk 0:00:02.1]} 29... Rf7 {[%clk
0:00:51.9]} 30. Bxe4 {[%clk 0:00:02.4]} 30... dxe4 {[%clk 0:00:51.9]} 31. Bg3
{[%clk 0:00:03.3]} 31... Rd7 {[%clk 0:00:48.6]} 32. Rf1 {[%clk 0:00:03.6]} 32...
Rad8 {[%clk 0:00:47]} 33. Bf4 {[%clk 0:00:03.9]} 33... Qg6 {[%clk 0:00:45.5]}
34. Kg2 {[%clk 0:00:03.4]} 34... Qf7 {[%clk 0:00:38.2]} 35. Rff2 {[%clk
0:00:03.7]} 35... Qh7 {[%clk 0:00:36.1]} 36. Rd2 {[%clk 0:00:03.8]} 36... Qh3+
{[%clk 0:00:35.9]} 37. Kg1 {[%clk 0:00:04.3]} 37... Rd3 {[%clk 0:00:35.2]} 38.
Rxd3 {[%clk 0:00:01.9]} 38... exd3 {[%clk 0:00:35.3]} 39. Qd2 {[%clk 0:00:01.7]}
39... Rd7 {[%clk 0:00:32.4]} 40. Bg3 {[%clk 0:00:01.8]} 40... Qh7 {[%clk
0:00:28.2]} 41. e4 {[%clk 0:00:01.7]} 41... fxe4 {[%clk 0:00:22.3]} 42. Rf6
{[%clk 0:00:01.9]} 42... e3 {[%clk 0:00:19.6]} 43. Qxe3 {[%clk 0:00:02]} 43...
d2 {[%clk 0:00:19.8]} 44. Qg5+ {[%clk 0:00:02.3]} 44... Qg7 {[%clk 0:00:19.6]}
0-1

[Event "*** Titled Tuesday Blitz"]
[Site "Chess.com"]
[Date "2021.02.09"]
[Round "2"]
[White "chescomhuynya"]
[Black "Redzishchess"]
[Result "1-0"]
[WhiteElo "2469"]
[BlackElo "2262"]
[TimeControl "180+1"]
[EndTime "10:18:44 PST"]
[Termination "chescomhuynya won on time"]

1. d4 {[%clk 0:03:00.9]} 1... Nf6 {[%clk 0:02:59.1]} 2. c4 {[%clk 0:02:59.5]}
2... e6 {[%clk 0:02:59]} 3. Nf3 {[%clk 0:02:59]} 3... Bb4+ {[%clk 0:02:55.3]} 4.
Nbd2 {[%clk 0:02:55.9]} 4... b6 {[%clk 0:02:52.9]} 5. g3 {[%clk 0:02:55.7]} 5...
Bb7 {[%clk 0:02:49.1]} 6. Bg2 {[%clk 0:02:55.2]} 6... O-O {[%clk 0:02:48.3]} 7.
O-O {[%clk 0:02:55.4]} 7... c5 {[%clk 0:02:27.7]} 8. a3 {[%clk 0:02:52.6]} 8...
Bxd2 {[%clk 0:02:27.3]} 9. Qxd2 {[%clk 0:02:53.4]} 9... d6 {[%clk 0:02:14.9]}
10. b3 {[%clk 0:02:48]} 10... Nc6 {[%clk 0:01:41.3]} 11. dxc5 {[%clk 0:02:28.6]}
11... dxc5 {[%clk 0:01:42.2]} 12. Qc2 {[%clk 0:02:06.1]} 12... Qe7 {[%clk
0:01:31.5]} 13. Bb2 {[%clk 0:02:04.3]} 13... Rad8 {[%clk 0:01:30.1]} 14. Rad1
{[%clk 0:02:03.8]} 14... Rxd1 {[%clk 0:01:18.6]} 15. Rxd1 {[%clk 0:02:04.7]}
15... Rd8 {[%clk 0:01:19.1]} 16. e3 {[%clk 0:01:56.1]} 16... Rxd1+ {[%clk
0:01:03.8]} 17. Qxd1 {[%clk 0:01:55.8]} 17... Qd7 {[%clk 0:01:04.4]} 18. Qc2
{[%clk 0:01:50.7]} 18... Ne8 {[%clk 0:00:40.2]} 19. h4 {[%clk 0:01:47.6]} 19...
f6 {[%clk 0:00:34.7]} 20. h5 {[%clk 0:01:41.3]} 20... e5 {[%clk 0:00:14.9]} 21.
Nh4 {[%clk 0:01:24.7]} 21... Ne7 {[%clk 0:00:14.6]} 22. Bf1 {[%clk 0:01:11.9]}
22... Qc6 {[%clk 0:00:12.3]} 23. Bg2 {[%clk 0:01:11.9]} 23... Qd7 {[%clk
0:00:12.5]} 24. Bxb7 {[%clk 0:01:01.9]} 24... Qxb7 {[%clk 0:00:13.4]} 25. Qd3
{[%clk 0:01:02.1]} 25... Qc7 {[%clk 0:00:13.5]} 26. a4 {[%clk 0:01:00]} 26...
Qd6 {[%clk 0:00:13.8]} 27. Qc2 {[%clk 0:00:58.8]} 27... Nc7 {[%clk 0:00:10.3]}
28. Kg2 {[%clk 0:00:56.5]} 28... Ne6 {[%clk 0:00:09.2]} 29. Bc3 {[%clk
0:00:50.1]} 29... Ng5 {[%clk 0:00:07.2]} 30. e4 {[%clk 0:00:18]} 30... a5 {[%clk
0:00:06.8]} 31. f3 {[%clk 0:00:16.3]} 31... Ne6 {[%clk 0:00:07]} 32. Kf2 {[%clk
0:00:13]} 32... Nd4 {[%clk 0:00:07.3]} 33. Qd1 {[%clk 0:00:11.2]} 33... g5
{[%clk 0:00:04.3]} 34. hxg6 {[%clk 0:00:09]} 34... hxg6 {[%clk 0:00:05.2]} 35.
Ng2 {[%clk 0:00:09.6]} 35... Nc8 {[%clk 0:00:03.7]} 36. Ne3 {[%clk 0:00:09.9]}
36... Nxb3 {[%clk 0:00:03.6]} 37. Qxb3 {[%clk 0:00:08.9]} 37... Qd3 {[%clk
0:00:03.9]} 38. Qc2 {[%clk 0:00:08.7]} 38... Qd6 {[%clk 0:00:02.7]} 39. Nd5
{[%clk 0:00:09]} 39... Ne7 {[%clk 0:00:02.6]} 40. Qb3 {[%clk 0:00:09.1]} 40...
Nc6 {[%clk 0:00:02.8]} 41. Qxb6 {[%clk 0:00:08.8]} 41... Kg7 {[%clk 0:00:03.5]}
42. Bxa5 {[%clk 0:00:08.2]} 42... Qe6 {[%clk 0:00:03]} 43. Bc3 {[%clk
0:00:08.2]} 1-0